Workbook

Sheet Berechnung mit Urlaub
A1: Umwandlung Treueprämie in Urlaub: Berechnung
A2: Name
A4: Vorname
A6: Pers.Nr.
A8: Dep./Amt
A10: Dienstjubiläum | C10: (10, 15 oder 25 Dienstjahre) | D10: nur Zahl eingeben
A12: Anspruch Treueprämie | B12: =IF($B$10=25,1,IF($B$10=10,0.5,IF($B$10=15,0.5,0))) -> 0 | C12: Monatslohn
A14: Basisanspruch | B14: =IF($B$10=10,10,IF($B$10=15,10,IF($B$10=25,20,0))) -> 0 | C14: Arbeitstage | D14: (berechnetes Feld)
A16: ø BG% der letzten 5 Jahre | C16: Prozent
A18: BG% aktuell | C18: Prozent
A20: Anspruch effektiv
A21: (gemäss aktuellem | B21: =B14*$B$16/$B$18 ->  | C21: Arbeitstage | D21: (berechnetes Feld)
A22: BG%)

Sheet Anteilmässige Ausrichtung
A1: Umwandlung Treueprämie in Urlaub: Berechnung bei anteilmässiger Ausrichtung
A2: gemäss Art. 114 Abs. 3 der Personalverordnung
A3: Name
A5: Vorname
A7: Pers.Nr.
A9: Dep./Amt
A11: nächstes Dienstjubiläum | C11: (15 oder 25 Dienstjahre) | D11: nur Zahl eingeben
F12: Hilfstabelle Umrechnung Monate in Jahre (dezimal):
A13: Anspruch Treueprämie | B13: =IF($B$11=25,1,IF($B$11=15,0.5,0)) -> 0 | C13: Monatslohn | F13: 1 Monat = | G13: =1/12 -> 0.08333333333 | H13: Jahre
F14: 2 Monate = | G14: =2/12 -> 0.1666666667 | H14: Jahre
A15: Basisanspruch | B15: =IF($B$11=15,10,IF($B$11=25,20,0)) -> 0 | C15: Arbeitstage | D15: (berechnetes Feld) | F15: 3 Monate = | G15: =3/12 -> 0.25 | H15: Jahre
F16: 4 Monate = | G16: =4/12 -> 0.3333333333 | H16: Jahre
A17: Dienstjahre bei Austritt | D17: nur Zahl eingeben, z.B. 12.58 | F17: 5 Monate = | G17: =5/12 -> 0.4166666667 | H17: Jahre
F18: 6 Monate = | G18: =6/12 -> 0.5 | H18: Jahre | S18: Berechnung Anteil TP:
A19: ø BG% der letzten 5 Jahre | C19: Prozent | F19: 7 Monate = | G19: =7/12 -> 0.5833333333 | H19: Jahre | S19: =IF(B11=15,B17-10,B17-15) -> -15
F20: 8 Monate = | G20: =8/12 -> 0.6666666667 | H20: Jahre | S20: =IF(B11=15,B11-10,B11-15) -> -15
A21: BG% aktuell | C21: Prozent | F21: 9 Monate = | G21: =9/12 -> 0.75 | H21: Jahre | S21: =S19/S20 -> 1
F22: 10 Monate = | G22: =10/12 -> 0.8333333333 | H22: Jahre
A23: Anspruch effektiv | B23: =B15*$B$19/$B$21*$S$21 ->  | C23: Arbeitstage | D23: (berechnetes Feld) | F23: 11 Monate = | G23: =11/12 -> 0.9166666667 | H23: Jahre
A24: (gemäss aktuellem
A25: BG%)

Sheet Berechnung mit Barwert
A1: Umwandlung Treueprämie in Urlaub: Berechnung Barwert eines Urlaubstages
A2: Name
A4: Vorname
A6: Pers.Nr.
A8: Dep./Amt
A10: Dienstjubiläum | C10: (10, 15 oder 25 Dienstjahre) | D10: nur Zahl eingeben
A12: Anspruch Treueprämie | B12: =IF($B$10=25,1,IF($B$10=10,0.5,IF($B$10=15,0.5,0))) -> 0 | C12: Monatslohn
A14: Basisanspruch Urlaub | B14: =IF($B$10=10,10,IF($B$10=15,10,IF($B$10=25,20,0))) -> 0 | C14: Arbeitstage | D14: (berechnetes Feld)
A16: ø BG% der letzten 5 Jahre | C16: Prozent
A18: BG% aktuell | C18: Prozent
A20: Anspruch effektiv | B20: =B14*$B$16/$B$18 ->  | C20: Arbeitstage | D20: (berechnetes Feld)
A21: (gemäss aktuellem
A22: BG%)
A24: Aktuelle Besoldung bei
A25: Beschäftigungsgrad 100% | C25: CHF / Jahr | D25: (ohne 13. ML, Inkonvenienzen, Sozial-, Funktions- und Marktzulagen)
A27: Barwert der Treueprämie | B27: =MROUND(B25/12*B12*B16%,0.05) -> 0 | C27: CHF | D27: (berechnetes Feld)
A29: Barwert eines Urlaubstages | B29: =MROUND($B$27/$B$20,0.05) ->  | C29: CHF | D29: (berechnetes Feld)
